fUST/lending_fUST_20241214
["ID","MTS","AMOUNT","RATE_DAILY","PERIOD"]
[345339637,1734161435012,-500.0,0.00027397,7]
[345339638,1734161435021,-500.0,0.00027397,7]
[345339639,1734161435031,-505.64861742,0.00027397,7]
[345339640,1734161435041,-500.0,0.00027397,7]
[345339641,1734161435050,-500.0,0.00027397,7]
[345339642,1734161435059,-500.0,0.00027397,7]
[345339643,1734161435069,-500.0,0.00027397,7]
[345339644,1734161435078,-500.0,0.00027397,7]
[345339645,1734161435087,-500.0,0.00027397,7]
[345339646,1734161435096,-500.0,0.00027397,7]
[345339647,1734161435106,-500.0,0.00027397,7]
[345339648,1734161435116,-505.64867092,0.00027397,7]
[345339649,1734161435125,-503.97961031,0.00027397,7]
[345339650,1734161435134,-502.77091983,0.00027397,7]
[345339651,1734161435144,-512.31346125,0.00027397,7]
[345339652,1734161435154,-500.0,0.00027397,7]
[345339653,1734161435163,-524.71321939,0.00027397,7]
[345339654,1734161435173,-500.0,0.00027397,7]
[345339655,1734161435182,-503.43046086,0.00027397,7]
[345339656,1734161435192,-512.028468,0.00027397,7]
[345339657,1734161435202,-500.0,0.00027397,2]
[345339658,1734161435211,-502.64586675,0.00027397,7]
[345339659,1734161435221,-504.60344535,0.00027397,7]
[345339660,1734161435231,-500.0,0.00027397,7]
[345339661,1734161435241,-500.0,0.00027397,7]
[345339662,1734161435250,-1506.5,0.00027397,7]
[345339663,1734161435261,-500.0,0.00027397,7]
[345339664,1734161435270,-500.0,0.00027397,7]
[345339665,1734161435279,-500.0,0.00027397,7]
[345339666,1734161435288,-500.0,0.00027397,7]
[345339667,1734161435298,-500.0,0.00027397,7]
[345339668,1734161435307,-503.80776045,0.00027397,7]
[345339669,1734161435316,-500.0,0.00027397,7]
[345339670,1734161435325,-500.0,0.00027397,7]
[345339671,1734161435335,-500.0,0.00027397,7]
[345339672,1734161435344,-504.12315183,0.00027397,7]
[345339673,1734161435353,-500.0,0.00027397,7]
[345339674,1734161435363,-500.0,0.00027397,7]
[345339675,1734161435372,-559.83843146,0.00027397,7]
[345339676,1734161435381,-165.76628527,0.00027397,7]
[345339677,1734161435390,-500.0,0.00027397,7]
[345339678,1734161435399,-503.9578718,0.00027397,7]
[345339679,1734161435409,-504.13230325,0.00027397,7]
[345339680,1734161435419,-500.0,0.00027397,7]
[345339681,1734161435428,-847.5,0.00027397,7]
[345339682,1734161435437,-500.0,0.00027397,7]
[345339683,1734161435447,-501.82337713,0.00027397,7]
[345339684,1734161435455,-500.0,0.00027397,7]
[345339685,1734161435465,-500.0,0.00027397,7]
[345339686,1734161435474,-503.3409234,0.00027397,7]
[345339687,1734161435483,-1187.82,0.00027397,7]
[345339688,1734161435492,-156.2494145,0.00027397,7]
[345339689,1734161435502,-500.0,0.00027397,7]
[345339690,1734161435513,-500.0,0.00027397,7]
[345339691,1734161435522,-504.99098774,0.00027397,7]
[345339692,1734161435532,-509.35093094,0.00027397,7]
[345339693,1734161435541,-203.2428536,0.00027397,7]
[345339694,1734161435550,-532.33776165,0.00027397,7]
[345339695,1734161435559,-500.0,0.00027397,7]
[345339696,1734161435568,-500.0,0.00027397,7]
[345339697,1734161435580,-500.0,0.00027397,7]
[345339698,1734161435589,-602.18,0.00027397,7]
[345339699,1734161435598,-500.0,0.00027397,7]
[345339700,1734161435607,-500.0,0.00027397,7]
[345339701,1734161435618,-449.62169423,0.00027397,7]
[345339702,1734161435627,-516.33720349,0.00027397,7]
[345339703,1734161435637,-500.0,0.00027397,7]
[345339704,1734161435646,-500.0,0.00027397,7]
[345339705,1734161435655,-500.0,0.00027397,7]
[345339706,1734161435665,-500.0,0.00027397,7]
[345339707,1734161435674,-500.0,0.00027397,7]
[345339708,1734161435683,-500.0,0.00027397,7]
[345339709,1734161435693,-500.0,0.00027397,7]
[345339710,1734161435702,-500.0,0.00027397,7]
[345339711,1734161435711,-444.19484421,0.00027397,7]
[345339712,1734161435720,-506.23960165,0.00027397,7]
[345339713,1734161435729,-503.43833124,0.00027397,7]
[345339714,1734161435738,-501.98039572,0.00027397,7]
[345339715,1734161435747,-500.0,0.00027397,7]
[345339716,1734161435756,-500.0,0.00027397,7]
[345339717,1734161435766,-500.0,0.00027397,7]
[345339718,1734161435775,-814.07,0.00027397,7]
[345339719,1734161435784,-500.0,0.00027397,7]
[345339720,1734161435793,-500.0,0.00027397,7]
[345339721,1734161435802,-500.0,0.00027397,7]
[345339722,1734161435811,-500.0,0.00027397,7]
[345339723,1734161435821,-507.44212617,0.00027397,7]
[345339724,1734161435830,-680.79,0.00027397,7]
[345339725,1734161435840,-505.39505844,0.00027397,7]
[345339726,1734161435849,-500.0,0.00027397,7]
[345339727,1734161435858,-503.67060608,0.00027397,7]
[345339728,1734161435867,-609.36,0.00027397,7]
[345339729,1734161435876,-500.0,0.00027397,7]
[345339730,1734161435885,-509.27642416,0.00027397,7]
[345339731,1734161435894,-508.0155646,0.00027397,7]
[345339732,1734161435903,-500.0,0.00027397,7]
[345339733,1734161435913,-500.0,0.00027397,7]
[345339734,1734161435922,-500.0,0.00027397,7]
[345339735,1734161435931,-500.0,0.00027397,7]
[345339736,1734161435940,-500.0,0.00027397,7]
[345339737,1734161435950,-2681.08,0.00027397,7]
[345339738,1734161435959,-535.56,0.00027397,7]
[345339739,1734161435968,-500.0,0.00027397,7]
[345339740,1734161435977,-539.17,0.00027397,7]
[345339741,1734161435987,-500.0,0.00027397,7]
[345339742,1734161435996,-500.0,0.00027397,7]
[345339743,1734161436006,-500.0,0.00027397,7]
[345339744,1734161436016,-500.0,0.00027397,7]
[345339745,1734161436027,-500.0,0.00027397,7]
[345339746,1734161436036,-793.59,0.00027397,7]
[345339747,1734161436045,-1000.0,0.00027397,7]
[345339748,1734161436054,-500.0,0.00027397,7]
[345339749,1734161436063,-500.0,0.00027397,7]
[345339750,1734161436072,-500.0,0.00027397,7]
[345339751,1734161436081,-564.92,0.00027397,7]
[345339752,1734161436091,-500.0,0.00027397,7]
[345339753,1734161436100,-162.80200349,0.00027397,7]
[345339754,1734161436109,-1148.77,0.00027397,7]
[345339755,1734161436118,-8029.27,0.00027397,7]
[345339756,1734161436128,-500.0,0.00027397,7]
[345339757,1734161436137,-414.89360863,0.00027397,7]
[345339758,1734161436146,-500.0,0.00027397,7]
[345339759,1734161436155,-500.0,0.00027397,7]
[345339760,1734161436164,-1349.56,0.00027397,7]
[345339761,1734161436173,-500.0,0.00027397,2]
[345339762,1734161436183,-500.0,0.00027397,7]
[345339763,1734161436192,-3121.12,0.00027397,5]
[345339764,1734161436201,-500.0,0.00027397,7]
[345339765,1734161436210,-5585.71,0.00027397,7]
[345339766,1734161436219,-534.24,0.00027397,7]
[345339767,1734161436228,-500.0,0.00027397,7]
[345339768,1734161436237,-500.0,0.00027397,7]
[345339769,1734161436246,-500.0,0.00027397,7]
[345339770,1734161436255,-500.0,0.00027397,7]
[345339771,1734161436266,-500.0,0.00027397,7]
[345339772,1734161436275,-500.0,0.00027397,7]
[345339773,1734161436284,-505.67913029,0.00027397,7]
[345339774,1734161436293,-28696.980348,0.00027397,2]
[345339775,1734161436303,-161.8510428,0.00027397,2]
[345339776,1734161436312,-535.39009742,0.000274,2]
[345339777,1734161436321,-2429.69,0.000274,2]
[345339778,1734161436331,-38299.70575562,0.000275,2]
[345339779,1734161436340,-14396.13263695,0.000275,30]
[345339780,1734161436358,-24165.32543843,0.000275,30]
[345339781,1734161436367,-160.0,0.0002757,2]
[345339782,1734161436376,-1000.0,0.000276,2]
[345339783,1734161436385,-500.0,0.00027671,7]
[345339784,1734161436394,-500.0,0.00027671,7]
[345339785,1734161436403,-500.0,0.00027671,7]
[345339786,1734161436412,-500.0,0.00027671,7]
[345339787,1734161436421,-500.0,0.00027671,7]
[345339788,1734161436431,-500.0,0.00027671,7]
[345339789,1734161436440,-500.0,0.00027671,7]
[345339790,1734161436451,-500.0,0.00027671,7]
[345339791,1734161436460,-500.0,0.00027671,7]
[345339792,1734161436470,-500.0,0.00027671,7]
[345339793,1734161436480,-500.0,0.00027671,7]
[345339794,1734161436490,-500.0,0.00027671,7]
[345339795,1734161436499,-500.0,0.00027671,2]
[345339796,1734161436509,-602.83,0.00027671,7]
[345339797,1734161436519,-500.0,0.00027671,7]
[345339798,1734161436528,-500.0,0.00027671,7]
[345339799,1734161436537,-500.0,0.00027671,7]
[345339800,1734161436547,-500.0,0.00027671,7]
[345339801,1734161436556,-846.77,0.00027671,7]
[345339802,1734161436565,-1000.0,0.00027671,2]
[345339803,1734161436661,-500.0,0.00027671,7]
[345339804,1734161436671,-500.0,0.00027671,7]
[345339805,1734161436680,-500.0,0.00027671,7]
[345339806,1734161436689,-761.58,0.00027671,7]
[345339807,1734161436698,-500.0,0.00027671,7]
[345339808,1734161436707,-500.0,0.00027671,7]
[345339809,1734161436716,-500.0,0.00027671,7]
[345339810,1734161436725,-610.57,0.00027671,7]
[345339811,1734161436734,-500.0,0.00027671,7]
[345339812,1734161436743,-500.0,0.00027671,7]
[345339813,1734161436752,-500.0,0.00027671,7]
[345339814,1734161436762,-500.0,0.00027671,7]
[345339815,1734161436772,-168.0,0.00027671,7]
[345339816,1734161436782,-500.0,0.00027671,7]
[345339817,1734161436791,-880.22,0.00027671,7]
[345339818,1734161436801,-500.0,0.00027671,7]
[345339819,1734161436810,-786.14,0.00027671,7]
[345339820,1734161436821,-500.0,0.00027671,7]
[345339821,1734161436831,-500.0,0.00027671,7]
[345339822,1734161436840,-500.0,0.00027671,7]
[345339823,1734161436849,-500.0,0.00027671,7]
[345339824,1734161436858,-227.58810408,0.00027671,7]
[345339825,1734161436867,-500.0,0.00027671,7]
[345339826,1734161436877,-500.0,0.00027671,7]
[345339827,1734161436886,-544.77,0.00027671,7]
[345339828,1734161436895,-500.0,0.00027671,7]
[345339829,1734161436904,-500.0,0.00027671,7]
[345339830,1734161436913,-500.0,0.00027671,7]
[345339831,1734161436923,-500.0,0.00027671,7]
[345339832,1734161436932,-500.0,0.00027671,7]
[345339833,1734161436941,-500.0,0.00027671,7]
[345339834,1734161436951,-500.0,0.00027671,7]
[345339835,1734161436960,-500.0,0.00027671,7]
[345339836,1734161436969,-500.0,0.00027671,7]
[345339837,1734161436978,-500.0,0.00027671,7]
[345339838,1734161436987,-1015.81397904,0.00027671,7]
[345339839,1734161436996,-712.64,0.00027671,7]
[345339840,1734161437006,-629.89,0.00027671,7]
[345339841,1734161437017,-500.0,0.00027671,7]
[345339842,1734161437027,-500.0,0.00027671,7]
[345339843,1734161437036,-500.0,0.00027671,7]
[345339844,1734161437045,-500.0,0.00027671,7]
[345339845,1734161437054,-500.0,0.00027671,7]
[345339846,1734161437064,-500.0,0.00027671,7]
[345339847,1734161437073,-500.0,0.00027671,7]
[345339848,1734161437081,-500.0,0.00027671,7]
[345339849,1734161437091,-500.0,0.00027671,7]
[345339850,1734161437100,-500.0,0.00027671,7]
[345339851,1734161437110,-500.0,0.00027671,7]
[345339852,1734161437119,-500.0,0.00027671,7]
[345339853,1734161437128,-500.0,0.00027671,7]
[345339854,1734161437137,-500.0,0.00027671,7]
[345339855,1734161437147,-500.0,0.00027671,2]
[345339856,1734161437156,-500.0,0.00027671,7]
[345339857,1734161437165,-500.0,0.00027671,7]
[345339858,1734161437175,-500.0,0.00027671,7]
[345339859,1734161437184,-500.0,0.00027671,7]
[345339860,1734161437193,-500.0,0.00027671,7]
[345339861,1734161437202,-500.0,0.00027671,7]
[345339862,1734161437212,-500.0,0.00027671,7]
[345339863,1734161437221,-500.0,0.00027671,7]
[345339864,1734161437230,-500.0,0.00027671,7]
[345339865,1734161437239,-500.0,0.00027671,7]
[345339866,1734161437248,-500.0,0.00027671,7]
[345339867,1734161437257,-1506.5,0.00027671,7]
[345339868,1734161437268,-500.0,0.00027671,7]
[345339869,1734161437277,-500.0,0.00027671,7]
[345339870,1734161437286,-500.0,0.00027671,7]
[345339871,1734161437295,-500.0,0.00027671,7]
[345339872,1734161437304,-500.0,0.00027671,7]
[345339873,1734161437314,-500.0,0.00027671,7]
[345339874,1734161437323,-847.5,0.00027671,7]
[345339875,1734161437333,-500.0,0.00027671,7]
[345339876,1734161437342,-1187.82,0.00027671,7]
[345339877,1734161437351,-504.06712699,0.00027671,7]
[345339878,1734161437360,-500.0,0.00027671,7]
[345339879,1734161437368,-500.0,0.00027671,7]
[345339880,1734161437377,-602.18,0.00027671,7]
[345339881,1734161437387,-500.0,0.00027671,7]
[345339882,1734161437396,-500.0,0.00027671,7]
[345339883,1734161437406,-500.0,0.00027671,7]
[345339884,1734161437415,-814.07,0.00027671,7]
[345339885,1734161437424,-500.0,0.00027671,7]
[345339886,1734161437433,-500.0,0.00027671,7]
[345339887,1734161437443,-500.0,0.00027671,7]
[345339888,1734161437452,-680.79,0.00027671,7]
[345339889,1734161437462,-609.36,0.00027671,7]
[345339890,1734161437473,-500.0,0.00027671,7]
[345339891,1734161437482,-500.0,0.00027671,7]
[345339892,1734161437492,-500.0,0.00027671,7]
[345339893,1734161437501,-500.0,0.00027671,7]
[345339894,1734161437512,-452.1992929,0.00027671,7]
[345339895,1734161437525,-153.99126006,0.00027671,7]
[345339896,1734161437534,-2681.08,0.00027671,7]
[345339897,1734161437544,-535.56,0.00027671,7]
[345339898,1734161437553,-500.0,0.00027671,7]
[345339899,1734161437562,-539.17,0.00027671,7]
[345339900,1734161437572,-500.0,0.00027671,7]
[345339901,1734161437585,-500.0,0.00027671,7]
[345339902,1734161437594,-505.08720714,0.00027671,7]
[345339903,1734161437603,-500.0,0.00027671,7]
[345339904,1734161437612,-793.59,0.00027671,7]
[345339905,1734161437622,-1000.0,0.00027671,7]
[345339906,1734161437632,-500.0,0.00027671,7]
[345339907,1734161437641,-500.0,0.00027671,7]
[345339908,1734161437651,-564.92,0.00027671,7]
[345339909,1734161437659,-500.0,0.00027671,7]
[345339910,1734161437668,-1148.77,0.00027671,7]
[345339911,1734161437678,-8029.27,0.00027671,7]
[345339912,1734161437687,-500.0,0.00027671,7]
[345339913,1734161437696,-500.0,0.00027671,7]
[345339914,1734161437705,-1349.56,0.00027671,7]
[345339915,1734161437714,-500.0,0.00027671,2]
[345339916,1734161437724,-3121.12,0.00027671,5]
[345339917,1734161437734,-500.0,0.00027671,7]
[345339918,1734161437743,-5585.71,0.00027671,7]
[345339919,1734161437756,-534.24,0.00027671,7]
[345339920,1734161437771,-500.0,0.00027671,7]
[345339922,1734161437780,-500.0,0.00027671,7]
[345339924,1734161437790,-500.0,0.00027671,7]
[345339926,1734161437799,-500.0,0.00027671,7]
[345339928,1734161437809,-500.0,0.00027671,7]
[345339930,1734161437818,-225.58042406,0.00027914,2]
[345339931,1734161437828,-500.0,0.00027945,7]
[345339932,1734161437837,-500.0,0.00027945,7]
[345339933,1734161437846,-500.0,0.00027945,7]
[345339934,1734161437855,-602.83,0.00027945,7]
[345339935,1734161437864,-500.0,0.00027945,7]
[345339936,1734161437874,-846.77,0.00027945,7]
[345339937,1734161437883,-1000.0,0.00027945,2]
[345339938,1734161437893,-500.0,0.00027945,7]
[345339939,1734161437903,-500.0,0.00027945,7]
[345339940,1734161437914,-761.58,0.00027945,7]
[345339941,1734161437923,-500.0,0.00027945,7]
[345339942,1734161437932,-610.57,0.00027945,7]
[345339944,1734161437941,-500.0,0.00027945,7]
[345339946,1734161437951,-500.0,0.00027945,7]
[345339948,1734161437960,-168.0,0.00027945,7]
[345339950,1734161437969,-880.22,0.00027945,7]
[345339952,1734161437979,-786.14,0.00027945,7]
[345339954,1734161437988,-500.0,0.00027945,7]
[345339956,1734161437997,-500.0,0.00027945,7]
[345339957,1734161438007,-500.0,0.00027945,7]
[345339958,1734161438019,-544.77,0.00027945,7]
[345339959,1734161438028,-500.0,0.00027945,7]
[345339961,1734161438037,-500.0,0.00027945,7]
[345339963,1734161438046,-500.0,0.00027945,7]
[345339965,1734161438055,-500.0,0.00027945,7]
[345339967,1734161438065,-712.64,0.00027945,7]
[345339969,1734161438074,-629.89,0.00027945,7]
[345339970,1734161438084,-500.0,0.00027945,7]
[345339971,1734161438101,-500.0,0.00027945,7]
[345339972,1734161438113,-500.0,0.00027945,7]
[345339973,1734161438122,-500.0,0.00027945,7]
[345339974,1734161438132,-500.0,0.00027945,7]
[345339975,1734161438142,-500.0,0.00027945,7]
[345339976,1734161438152,-500.0,0.00027945,7]
[345339977,1734161438161,-500.0,0.00027945,7]
[345339978,1734161438171,-159.89225938,0.00027945,2]
[345339979,1734161438181,-500.0,0.00027945,7]
[345339980,1734161438190,-500.0,0.00027945,7]
[345339982,1734161438200,-500.0,0.00027945,7]
[345339984,1734161438210,-500.0,0.00027945,7]
[345339986,1734161438220,-500.0,0.00027945,7]
[345339988,1734161438230,-500.0,0.00027945,7]
[345339990,1734161438240,-500.0,0.00027945,7]
[345339992,1734161438249,-500.0,0.00027945,7]
[345339994,1734161438259,-1506.5,0.00027945,7]
[345339996,1734161438269,-500.0,0.00027945,7]
[345339998,1734161438279,-500.0,0.00027945,7]
[345339999,1734161438288,-500.0,0.00027945,7]
[345340000,1734161438298,-500.0,0.00027945,7]
[345340001,1734161438307,-500.0,0.00027945,7]
[345340002,1734161438317,-847.5,0.00027945,7]
[345340003,1734161438326,-500.0,0.00027945,7]
[345340004,1734161438336,-1187.82,0.00027945,7]
[345340006,1734161438346,-500.0,0.00027945,7]
[345340009,1734161438355,-500.0,0.00027945,7]
[345340011,1734161438365,-602.18,0.00027945,7]
[345340013,1734161438375,-500.0,0.00027945,7]
[345340015,1734161438384,-478.79221784,0.00027945,7]
[345340017,1734161438394,-814.07,0.00027945,7]
[345340019,1734161438404,-500.0,0.00027945,7]
[345340021,1734161438413,-500.0,0.00027945,7]
[345340023,1734161438422,-680.79,0.00027945,7]
[345340025,1734161438432,-609.36,0.00027945,7]
[345340027,1734161438441,-500.0,0.00027945,7]
[345340029,1734161438450,-500.0,0.00027945,7]
[345340031,1734161438459,-500.0,0.00027945,7]
[345340033,1734161438469,-2681.08,0.00027945,7]
[345340035,1734161438478,-535.56,0.00027945,7]
[345340037,1734161438487,-539.17,0.00027945,7]
[345340039,1734161438497,-500.0,0.00027945,7]
[345340041,1734161438507,-500.0,0.00027945,7]
[345340043,1734161438520,-500.0,0.00027945,7]
[345340045,1734161438531,-793.59,0.00027945,7]
[345340047,1734161438541,-500.0,0.00027945,7]
[345340049,1734161438550,-500.0,0.00027945,7]
[345340051,1734161438559,-564.92,0.00027945,7]
[345340053,1734161438569,-500.0,0.00027945,7]
[345340055,1734161438584,-1148.77,0.00027945,7]
[345340058,1734161438594,-8029.27,0.00027945,7]
[345340060,1734161438603,-500.0,0.00027945,7]
[345340062,1734161438613,-1349.56,0.00027945,7]
[345340064,1734161438625,-3121.12,0.00027945,5]
[345340066,1734161438634,-5585.71,0.00027945,7]
[345340068,1734161438644,-534.24,0.00027945,7]
[345340070,1734161438655,-500.0,0.00027945,7]
[345340072,1734161438664,-500.0,0.00027945,7]
[345340074,1734161438673,-500.0,0.00027945,7]
[345340076,1734161438682,-255.0,0.00028,2]
[345340078,1734161438692,-155.9,0.00028,31]
[345340080,1734161438702,-155.9,0.00028,31]
[345340082,1734161438711,-153.0,0.00028073,2]
[345340084,1734161438720,-153.0,0.00028073,2]
[345340086,1734161438730,-153.0,0.00028073,2]
[345340088,1734161438740,-153.0,0.00028073,2]
[345340090,1734161438750,-153.0,0.00028073,2]
[345340092,1734161438759,-153.0,0.00028073,2]
[345340094,1734161438770,-153.0,0.00028073,2]
[345340096,1734161438779,-153.0,0.00028073,2]
[345340098,1734161438789,-153.0,0.00028073,2]
[345340100,1734161438799,-153.0,0.00028073,2]
[345340102,1734161438808,-153.0,0.00028073,2]
[345340104,1734161438818,-153.0,0.00028073,2]
[345340106,1734161438827,-153.0,0.00028073,2]
[345340108,1734161438837,-153.0,0.00028073,2]
[345340110,1734161438847,-153.0,0.00028073,2]
[345340112,1734161438855,-153.0,0.00028073,2]
[345340114,1734161438865,-153.0,0.00028073,2]
[345340116,1734161438874,-153.0,0.00028073,2]
[345340119,1734161438884,-153.0,0.00028073,2]
[345340121,1734161438894,-153.0,0.00028073,2]
[345340122,1734161438903,-153.0,0.00028073,2]
[345340124,1734161438912,-153.0,0.00028073,2]
[345340127,1734161438921,-153.0,0.00028073,2]
[345340129,1734161438930,-153.0,0.00028073,2]
[345340131,1734161438939,-153.0,0.00028073,2]
[345340133,1734161438949,-153.0,0.00028073,2]
[345340135,1734161438959,-153.0,0.00028073,2]
[345340137,1734161438969,-500.0,0.00028219,7]
[345340139,1734161438979,-500.0,0.00028219,7]
[345340154,1734161439105,-602.83,0.00028219,7]
[345340156,1734161439115,-500.0,0.00028219,7]
[345340158,1734161439126,-846.77,0.00028219,7]
[345340160,1734161439135,-1000.0,0.00028219,2]
[345340162,1734161439145,-500.0,0.00028219,7]
[345340164,1734161439154,-500.0,0.00028219,7]
[345340166,1734161439163,-761.58,0.00028219,7]
[345340168,1734161439172,-500.0,0.00028219,7]
[345340170,1734161439182,-610.57,0.00028219,7]
[345340172,1734161439191,-500.0,0.00028219,7]
[345340174,1734161439202,-500.0,0.00028219,7]
[345340176,1734161439211,-168.0,0.00028219,7]
[345340178,1734161439220,-880.22,0.00028219,7]
[345340180,1734161439229,-786.14,0.00028219,7]
[345340182,1734161439239,-500.0,0.00028219,7]
[345340184,1734161439248,-500.0,0.00028219,7]
[345340186,1734161439257,-500.0,0.00028219,7]
[345340188,1734161439267,-544.77,0.00028219,7]
[345340190,1734161439276,-500.0,0.00028219,7]
[345340192,1734161439286,-500.0,0.00028219,7]
[345340194,1734161439295,-500.0,0.00028219,7]
[345340197,1734161439304,-500.0,0.00028219,7]
[345340199,1734161439314,-712.64,0.00028219,7]
[345340201,1734161439323,-629.89,0.00028219,7]
[345340203,1734161439333,-500.0,0.00028219,7]
[345340205,1734161439341,-500.0,0.00028219,7]
[345340207,1734161439351,-500.0,0.00028219,7]
[345340209,1734161439361,-500.0,0.00028219,7]
[345340211,1734161439370,-500.0,0.00028219,7]
[345340213,1734161439380,-500.0,0.00028219,7]
[345340215,1734161439389,-500.0,0.00028219,7]
[345340217,1734161439399,-500.0,0.00028219,7]
[345340219,1734161439408,-500.0,0.00028219,7]
[345340221,1734161439420,-500.0,0.00028219,7]
[345340223,1734161439430,-500.0,0.00028219,7]
[345340225,1734161439439,-1506.5,0.00028219,7]
[345340227,1734161439449,-500.0,0.00028219,7]
[345340229,1734161439459,-500.0,0.00028219,7]
[345340231,1734161439468,-500.0,0.00028219,7]
[345340233,1734161439477,-500.0,0.00028219,7]
[345340235,1734161439486,-500.0,0.00028219,7]
[345340237,1734161439495,-847.5,0.00028219,7]
[345340239,1734161439504,-1187.82,0.00028219,7]
[345340241,1734161439514,-500.0,0.00028219,7]
[345340243,1734161439523,-500.0,0.00028219,7]
[345340245,1734161439532,-602.18,0.00028219,7]
[345340247,1734161439542,-500.0,0.00028219,7]
[345340249,1734161439552,-814.07,0.00028219,7]
[345340251,1734161439562,-500.0,0.00028219,7]
[345340253,1734161439571,-500.0,0.00028219,7]
[345340256,1734161439586,-680.79,0.00028219,7]
[345340257,1734161439595,-609.36,0.00028219,7]
[345340260,1734161439605,-500.0,0.00028219,7]
[345340262,1734161439615,-500.0,0.00028219,7]
[345340264,1734161439626,-500.0,0.00028219,7]
[345340266,1734161439636,-2681.08,0.00028219,7]
[345340268,1734161439645,-535.56,0.00028219,7]
[345340270,1734161439657,-539.17,0.00028219,7]
[345340272,1734161439667,-500.0,0.00028219,7]
[345340274,1734161439676,-500.0,0.00028219,7]
[345340276,1734161439686,-500.0,0.00028219,7]
[345340278,1734161439695,-793.59,0.00028219,7]
[345340280,1734161439704,-500.0,0.00028219,7]
[345340282,1734161439714,-500.0,0.00028219,7]
[345340284,1734161439723,-564.92,0.00028219,7]
[345340286,1734161439733,-500.0,0.00028219,7]
[345340288,1734161439743,-1148.77,0.00028219,7]
[345340290,1734161439752,-8029.27,0.00028219,7]
[345340292,1734161439761,-500.0,0.00028219,7]
[345340294,1734161439771,-1349.56,0.00028219,7]
[345340296,1734161439781,-3121.12,0.00028219,5]
[345340298,1734161439791,-5585.71,0.00028219,7]
[345340300,1734161439801,-534.24,0.00028219,7]
[345340302,1734161439811,-500.0,0.00028219,7]
[345340304,1734161439820,-203.55981216,0.00028219,7]
[345340306,1734161439830,-500.0,0.00028219,7]
[345340308,1734161439840,-500.0,0.00028493,7]
[345340311,1734161439850,-500.0,0.00028493,7]
[345340313,1734161439860,-602.83,0.00028493,7]
[345340315,1734161439869,-500.0,0.00028493,7]
[345340316,1734161439878,-846.77,0.00028493,7]
[345340319,1734161439888,-1000.0,0.00028493,2]
[345340320,1734161439898,-500.0,0.00028493,7]
[345340323,1734161439908,-500.0,0.00028493,7]
[345340325,1734161439917,-761.58,0.00028493,7]
[345340327,1734161439927,-500.0,0.00028493,7]
[345340329,1734161439937,-610.57,0.00028493,7]
[345340331,1734161439947,-500.0,0.00028493,7]
[345340333,1734161439957,-500.0,0.00028493,7]
[345340335,1734161439967,-168.0,0.00028493,7]
[345340337,1734161439976,-880.22,0.00028493,7]
[345340338,1734161439986,-786.14,0.00028493,7]